fUSD/lending_fUSD_20241031
["ID","MTS","AMOUNT","RATE_DAILY","PERIOD"]
[341086668,1730361060754,-187.71559277,0.00041999,30]
[341086669,1730361060764,-294.0,0.00042,7]
[341086670,1730361060773,-1535176.31896175,0.00042,2]
[341086671,1730361060782,-194.49702569,0.00042,30]
[341086672,1730361060792,-14067.71441044,0.00042,30]
[341086673,1730361060801,-151.0,0.00042,120]
[341086674,1730361060810,-151.0,0.00042,30]
[341086675,1730361060819,-154.624386,0.00042,14]
[341086676,1730361060829,-217.31032949,0.00042,30]
[341086677,1730361060838,-151.0,0.00042,14]
[341086678,1730361060847,-157.599396,0.00042,14]
[341086679,1730361060856,-151.0,0.00042,14]
[341086680,1730361060865,-151.0,0.00042,14]
[341086681,1730361060875,-152.459188,0.00042,14]
[341086682,1730361060884,-151.0,0.00042,14]
[341086683,1730361060894,-151.0,0.00042,14]
[341086684,1730361060906,-151.0,0.00042,14]
[341086685,1730361060916,-174.581979,0.00042,14]
[341086686,1730361060926,-174.581979,0.00042,14]
[341086687,1730361060935,-174.581979,0.00042,14]
[341086688,1730361060945,-174.581979,0.00042,14]
[341086689,1730361060955,-2902.0,0.00042037,2]
[341086690,1730361060964,-159.893165,0.00042186,14]
[341086691,1730361060974,-1000.0,0.000422,30]
[341086692,1730361060984,-968.0,0.00042258,2]
[341086693,1730361060993,-507.50371686,0.00042273,120]
[341086694,1730361061003,-151.0,0.00042491,14]
[341086695,1730361061013,-12318.68620697,0.00042491,15]
[341086696,1730361061023,-1000.0,0.000425,30]
[341086697,1730361061032,-1647.5,0.00042684,120]
[341086698,1730361061042,-500.0,0.0004285,10]
[341086699,1730361061052,-511.71060519,0.0004285,10]
[341086700,1730361061061,-500.0,0.0004285,10]
[341086701,1730361061071,-62426.59228518,0.00043,2]
[341086702,1730361061081,-2299.5792,0.00043,30]
[341086703,1730361061092,-151.0,0.00043,14]
[341086704,1730361061102,-188.535255,0.00043,14]
[341086705,1730361061112,-151.0,0.00043,14]
[341086706,1730361061122,-247.735,0.00043122,2]
[341086707,1730361061131,-282.457,0.00043122,2]
[341086708,1730361061140,-153.380273,0.00043122,14]
[341086709,1730361061150,-161.462151,0.00043122,14]
[341086710,1730361061160,-213.09201516,0.00043299,15]
[341086711,1730361061169,-674.33,0.00043301,2]
[341086712,1730361061179,-7419.274994,0.00043303,7]
[341086713,1730361061188,-2776.463217,0.00043303,7]
[341086714,1730361061198,-1411.532379,0.00043303,7]
[341086715,1730361061207,-231.58928954,0.00043351,28]
[341086716,1730361061217,-174.581979,0.00043352,14]
[341086717,1730361061226,-174.581979,0.00043352,14]
[341086718,1730361061235,-1647.5,0.00043369,120]
[341086719,1730361061245,-15255.46136261,0.000435,2]
[341086720,1730361061254,-500.0019196,0.000436,10]
[341086721,1730361061266,-160.75143278,0.000436,10]
[341086722,1730361061276,-500.0,0.000436,10]
[341086723,1730361061285,-500.0,0.000436,10]
[341086724,1730361061295,-237.875961,0.00043647,14]
[341086725,1730361061304,-6850.349,0.00043647,120]
[341086726,1730361061314,-6850.35,0.00043647,120]
[341086727,1730361061323,-6850.35,0.00043647,120]
[341086728,1730361061332,-6850.349,0.00043647,120]
[341086729,1730361061342,-6850.35,0.00043647,120]
[341086730,1730361061351,-500.0,0.00043674,5]
[341086731,1730361061360,-10084.806,0.000438,120]
[341086732,1730361061370,-2010.0,0.00043836,30]
[341086733,1730361061379,-5610.38596262,0.0004388,2]
[341086734,1730361061388,-150.0,0.0004394,2]
[341086735,1730361061398,-500.0,0.00043958,4]
[341086736,1730361061407,-183.71983357,0.00043961,2]
[341086737,1730361061416,-150.0,0.00043965,2]
[341086738,1730361061425,-150.0,0.00043966,2]
[341086739,1730361061435,-500.0,0.00043967,4]
[341086740,1730361061445,-151.75239682,0.00043973,2]
[341086741,1730361061454,-500.0,0.00043976,4]
[341086742,1730361061463,-2250.0,0.00044,4]
[341086743,1730361061474,-11149.01146824,0.00044,30]
[341086744,1730361061483,-743.14,0.00044,2]
[341086745,1730361061492,-150.0,0.00044012,2]
[341086746,1730361061501,-150.0,0.00044036,2]
[341086747,1730361061512,-150.0,0.0004405,2]
[341086748,1730361061521,-1647.5,0.00044054,120]
[341086749,1730361061531,-150.0,0.00044072,2]
[341086750,1730361061540,-1545.17359734,0.00044076,7]
[341086751,1730361061550,-227335.19023053,0.00044095,2]
[341086752,1730361061559,-174.581979,0.00044095,14]
[341086753,1730361061568,-174.581979,0.00044095,14]
[341086754,1730361061577,-150.0,0.00044114,2]
[341086755,1730361061586,-150.0,0.0004412,2]
[341086756,1730361061596,-6000.0,0.00044123,120]
[341086757,1730361061606,-6000.0,0.00044123,120]
[341086758,1730361061615,-6000.0,0.00044123,120]
[341086759,1730361061626,-6000.0,0.00044123,120]
[341086760,1730361061635,-6000.0,0.00044123,120]
[341086761,1730361061644,-150.0,0.00044131,2]
[341086762,1730361061653,-150.0,0.00044132,2]
[341086763,1730361061662,-150.0,0.00044154,2]
[341086764,1730361061671,-177.0,0.00044164,120]
[341086765,1730361061680,-202.64973893,0.00044173,10]
[341086766,1730361061690,-501.4665284,0.00044173,10]
[341086767,1730361061699,-150.0,0.00044183,2]
[341086768,1730361061708,-1545.48405228,0.00044198,7]
[341086769,1730361061770,-430.18,0.000442,30]
[341086770,1730361061784,-650.26,0.000442,60]
[341086771,1730361061793,-369.627983,0.000442,58]
[341086772,1730361061802,-150.0,0.00044214,2]
[341086773,1730361061811,-1500.0,0.00044292,7]
[341086774,1730361061820,-2000.0,0.00044299,7]
[341086775,1730361061829,-200.0,0.00044299,7]
[341086776,1730361061838,-174.581979,0.00044301,14]
[341086777,1730361061847,-174.581979,0.00044301,14]
[341086778,1730361061856,-174.581979,0.00044301,14]
[341086779,1730361061865,-174.581979,0.00044301,14]
[341086780,1730361061874,-174.581979,0.00044301,14]
[341086781,1730361061883,-174.581979,0.00044301,14]
[341086782,1730361061892,-174.581979,0.00044301,14]
[341086783,1730361061901,-174.581979,0.00044301,14]
[341086784,1730361061910,-174.581979,0.00044301,14]
[341086785,1730361061918,-174.581971,0.00044301,14]
[341086786,1730361061928,-1740438.52144378,0.00044303,2]
[341086787,1730361061938,-214.32304112,0.00044303,5]
[341086788,1730361061948,-119382.20374608,0.00044303,2]
[341086789,1730361061959,-442.69225433,0.00044303,2]
[341086790,1730361061969,-1050.78750638,0.00044303,2]
[341086791,1730361061980,-2500.0,0.00044303,2]
[341086792,1730361061990,-570.48734191,0.00044303,2]
[341086793,1730361061999,-2342.34054274,0.00044303,2]
[341086794,1730361062011,-1091.23281865,0.00044303,7]
[341086795,1730361062020,-530.71425163,0.00044303,2]
[341086796,1730361062029,-280478.99800449,0.00044303,2]
[341086797,1730361062038,-898.40667016,0.00044303,2]
[341086798,1730361062048,-474.2670099,0.00044303,2]
[341086799,1730361062058,-160726.20574027,0.00044303,7]
[341086800,1730361062070,-1561.96214763,0.00044303,2]
[341086801,1730361062082,-2000.0,0.00044303,2]
[341086802,1730361062100,-10824.54481103,0.00044303,2]
[341086803,1730361062109,-320.80721852,0.00044303,2]
[341086804,1730361062119,-4739.35933755,0.00044303,10]
[341086805,1730361062128,-539.2513429,0.00044303,2]
[341086806,1730361062139,-4928.978723,0.00044303,2]
[341086807,1730361062148,-22651.34132134,0.00044303,2]
[341086808,1730361062157,-3570.83309451,0.00044303,2]
[341086809,1730361062168,-359.05863119,0.00044303,2]
[341086810,1730361062177,-22955.61141741,0.00044303,2]
[341086811,1730361062187,-2170.79726024,0.00044303,2]
[341086812,1730361062197,-279.23017439,0.00044303,2]
[341086813,1730361062206,-302869.23297062,0.00044303,14]
[341086814,1730361062216,-6640.9416992,0.00044303,4]
[341086815,1730361062226,-212.24647969,0.00044303,7]
[341086816,1730361062235,-5097.05473252,0.00044303,4]
[341086817,1730361062245,-208.23300724,0.00044303,5]
[341086818,1730361062256,-1019.14678833,0.00044303,2]
[341086819,1730361062265,-13843.98465975,0.00044303,2]
[341086820,1730361062275,-216.865201,0.00044303,2]
[341086821,1730361062285,-209.64748856,0.00044303,2]
[341086822,1730361062294,-7731.94323165,0.00044303,2]
[341086823,1730361062303,-1039.0,0.00044303,2]
[341086824,1730361062313,-1408.11520112,0.00044303,2]
[341086825,1730361062323,-837.95929195,0.00044303,2]
[341086826,1730361062332,-199.51398385,0.00044303,2]
[341086827,1730361062342,-7984.56797316,0.00044303,2]
[341086828,1730361062352,-808.869999,0.00044303,2]
[341086829,1730361062361,-263.44430196,0.00044303,7]
[341086830,1730361062371,-5651.80933947,0.00044303,2]
[341086831,1730361062380,-150.0,0.00044303,2]
[341086832,1730361062389,-170384.41100552,0.00044303,2]
[341086833,1730361062399,-10416.28372298,0.00044303,3]
[341086834,1730361062408,-1210.0,0.00044303,2]
[341086835,1730361062418,-3671.7368394,0.00044303,2]
[341086836,1730361062428,-342.60336096,0.00044303,2]
[341086837,1730361062439,-2957.07636032,0.00044303,2]
[341086838,1730361062450,-225.39395981,0.00044303,7]
[341086839,1730361062460,-40051.57591362,0.00044303,10]
[341086840,1730361062470,-1495.86625001,0.00044303,2]
[341086841,1730361062479,-7258.60135069,0.00044303,2]
[341086842,1730361062489,-1012.70463645,0.00044303,2]
[341086843,1730361062498,-5100.08001073,0.00044303,2]
[341086844,1730361062508,-96096.84200839,0.00044303,10]
[341086845,1730361062517,-2688.44702051,0.00044303,2]
[341086846,1730361062526,-518.64679671,0.00044303,7]
[341086847,1730361062536,-2414.84396924,0.00044303,2]
[341086848,1730361062545,-2634.6095796,0.00044303,2]
[341086849,1730361062554,-135209.944515,0.00044303,2]
[341086850,1730361062564,-3194.60062441,0.00044303,2]
[341086851,1730361062574,-1459.28926809,0.00044303,2]
[341086852,1730361062583,-7595.45749484,0.00044303,2]
[341086853,1730361062593,-1051.39210755,0.00044303,2]
[341086854,1730361062603,-5874.87636365,0.00044303,2]
[341086855,1730361062614,-2186.9453726,0.00044303,10]
[341086856,1730361062624,-855.91307942,0.00044303,2]
[341086857,1730361062635,-145562.91690469,0.00044303,2]
[341086858,1730361062645,-187.82608768,0.00044303,2]
[341086859,1730361062655,-9090.87578868,0.00044303,2]
[341086860,1730361062664,-1290.35817273,0.00044303,2]
[341086861,1730361062674,-4863.23228583,0.00044303,2]
[341086862,1730361062683,-292.07986387,0.00044303,2]
[341086863,1730361062692,-12631.74674161,0.00044303,2]
[341086864,1730361062701,-1890.73130105,0.00044303,2]
[341086865,1730361062712,-181.12614262,0.00044303,2]
[341086866,1730361062722,-14597.95645794,0.00044303,3]
[341086867,1730361062732,-5495.93803635,0.00044303,2]
[341086868,1730361062742,-170.0,0.00044303,120]
[341086869,1730361062753,-178.39564096,0.00044303,60]
[341086870,1730361062763,-150.0,0.00044303,30]
[341086871,1730361062773,-1085.18808791,0.00044303,30]
[341086872,1730361062784,-631.14362995,0.00044303,30]
[341086873,1730361062794,-13718.8864751,0.0004441,2]
[341086874,1730361062804,-31941.0626845,0.0004444,2]
[341086875,1730361062814,-6000.0,0.000445,120]
[341086876,1730361062823,-152.0,0.00044668,3]
[341086877,1730361062833,-31688.48,0.000447,14]
[341086878,1730361062844,-1000.0,0.00044739,2]
[341086879,1730361062854,-1647.5,0.00044739,120]
[341086880,1730361062865,-200.0,0.00044742,7]
[341086881,1730361062874,-12318.68620697,0.00044843,15]
[341086882,1730361062885,-218.23399006,0.00045,120]
[341086883,1730361062895,-6000.0,0.00045,120]
[341086884,1730361062906,-2000.0,0.00045,120]
[341086885,1730361062917,-151.45108538,0.00045,60]
[341086886,1730361062926,-2902.0,0.00045037,2]
[341086887,1730361062936,-191.9027502,0.000451,20]
[341086888,1730361062946,-200.0,0.00045189,7]
[341086889,1730361062957,-150.0,0.00045205,2]
[341086890,1730361062966,-1647.5,0.00045424,120]
[341086891,1730361062977,-6000.0,0.000455,120]
[341086892,1730361062987,-674.33,0.00045565,2]
[341086893,1730361062996,-7922.12,0.000457,22]
[341086894,1730361063005,-150.0,0.000457,120]
[341086895,1730361063016,-157.18,0.00045753,2]
[341086896,1730361063025,-231.58928954,0.00045876,28]
[341086897,1730361063035,-21841.5,0.00045999,2]
[341086898,1730361063044,-6000.0,0.00046,120]
[341086899,1730361063054,-3081.29835613,0.00046,120]
[341086900,1730361063064,-80000.0,0.00046,30]
[341086901,1730361063075,-306159.98935674,0.00046,30]
[341086902,1730361063086,-154.6,0.00046027,2]
[341086903,1730361063100,-968.0,0.000461,2]
[341086904,1730361063110,-1647.5,0.00046109,120]
[341086905,1730361063119,-150.0,0.00046122,2]
[341086906,1730361063129,-2229.42,0.000462,7]
[341086907,1730361063138,-403.44969976,0.00046381,7]
[341086908,1730361063148,-21644.2926168,0.00046381,7]
[341086909,1730361063157,-369.33848094,0.00046381,7]
[341086910,1730361063166,-788.29,0.00046438,2]
[341086911,1730361063176,-584.56,0.00046438,2]
[341086912,1730361063187,-759.7,0.00046438,2]
[341086913,1730361063198,-759.7,0.00046438,2]
[341086914,1730361063207,-759.7,0.00046438,2]
[341086915,1730361063217,-759.7,0.00046438,2]
[341086916,1730361063227,-759.7,0.00046438,2]
[341086917,1730361063237,-759.7,0.00046438,2]
[341086918,1730361063246,-759.7,0.00046438,2]
[341086919,1730361063255,-759.7,0.00046438,2]
[341086920,1730361063265,-759.7,0.00046438,2]
[341086921,1730361063275,-6000.0,0.000465,120]
[341086922,1730361063285,-641.83247799,0.000465,120]
[341086923,1730361063294,-161.63,0.00046526,120]
[341086924,1730361063305,-1647.5,0.00046794,120]
[341086925,1730361063315,-160.577213,0.000468,30]
[341086926,1730361063324,-800.0,0.000469,17]
[341086927,1730361063334,-430.18,0.000469,30]
[341086928,1730361063343,-650.26,0.000469,60]
[341086929,1730361063353,-185.69583597,0.000469,25]
[341086930,1730361063363,-456.58546638,0.000469,2]
[341086931,1730361063373,-14073.71978508,0.000469,2]
[341086932,1730361063384,-6046.04784707,0.000469,2]
[341086933,1730361063397,-1355.34086572,0.00046999,60]
[341086934,1730361063407,-23657.0,0.00047,30]
[341086935,1730361063417,-6000.0,0.00047,120]
[341086936,1730361063427,-318.45522927,0.00047,60]
[341086937,1730361063438,-207.3575401,0.00047,120]
[341086938,1730361063448,-151.0,0.00047151,120]
[341086939,1730361063459,-12318.68620697,0.00047196,15]
[341086940,1730361063469,-500.0,0.00047452,10]
[341086941,1730361063480,-399.52255652,0.00047479,2]
[341086942,1730361063490,-1647.5,0.00047479,120]
[341086943,1730361063501,-507.14278594,0.00047487,30]
[341086944,1730361063514,-6000.0,0.000475,120]
[341086945,1730361063524,-5175.67927722,0.000476,2]
[341086946,1730361063535,-190.65184,0.000476,120]
[341086947,1730361063545,-163.75079097,0.00047729,120]
[341086948,1730361063556,-50030.84107606,0.0004777,2]
[341086949,1730361063566,-674.33,0.00047829,2]
[341086950,1730361063579,-407.0,0.000479,35]
[341086951,1730361063590,-1000.0,0.000479,7]
[341086952,1730361063601,-204.82143431,0.0004799,120]
[341086953,1730361063612,-551.68,0.0004799,120]
[341086954,1730361063622,-900.0,0.00048,49]
[341086955,1730361063633,-6000.0,0.00048,120]
[341086956,1730361063643,-14275.41807645,0.00048,30]
[341086957,1730361063654,-328783.0,0.00048,2]
[341086958,1730361063664,-2902.0,0.00048037,2]
[341086959,1730361063675,-1647.5,0.00048164,120]
[341086960,1730361063685,-504.092038,0.000483,74]
[341086961,1730361063694,-191.9027502,0.000483,24]
[341086962,1730361063706,-1524.23297994,0.000483,120]
[341086963,1730361063716,-1524.23297994,0.000483,120]
[341086964,1730361063727,-1524.23297994,0.000483,120]
[341086965,1730361063737,-1524.23297994,0.000483,120]
[341086966,1730361063747,-1524.23297994,0.000483,120]
[341086967,1730361063757,-1524.23297994,0.000483,120]
[341086968,1730361063767,-1524.23297994,0.000483,120]
[341086969,1730361063778,-1524.23297994,0.000483,120]
[341086970,1730361063789,-1524.23297994,0.000483,120]
[341086971,1730361063800,-1524.23297994,0.000483,120]
[341086972,1730361063811,-1524.23297994,0.000483,120]
[341086973,1730361063821,-1524.23297994,0.000483,120]
[341086974,1730361063831,-1524.23297994,0.000483,120]
[341086975,1730361063841,-1524.23297994,0.000483,120]
[341086976,1730361063851,-1524.23297994,0.000483,120]
[341086977,1730361063861,-1524.23297994,0.000483,120]
[341086978,1730361063871,-1524.23297994,0.000483,120]
[341086979,1730361063880,-1524.23297994,0.000483,120]
[341086980,1730361063890,-1524.23297994,0.000483,120]
[341086981,1730361063900,-1524.23,0.000483,120]
[341086982,1730361063910,-1831.78140539,0.000483,120]
[341086983,1730361063922,-1831.78140539,0.000483,120]
[341086984,1730361063932,-1831.78140539,0.000483,120]
[341086985,1730361063941,-1831.78140539,0.000483,120]
[341086986,1730361063951,-1831.78140539,0.000483,120]
[341086987,1730361063962,-1831.78140539,0.000483,120]
[341086988,1730361063972,-1831.78140539,0.000483,120]
[341086989,1730361063982,-1831.78140539,0.000483,120]
[341086990,1730361063992,-1831.78140539,0.000483,120]
[341086991,1730361064002,-1831.78140539,0.000483,120]
[341086992,1730361064013,-1831.78140539,0.000483,120]
[341086993,1730361064022,-1831.78140539,0.000483,120]
[341086994,1730361064032,-1831.78140539,0.000483,120]
[341086995,1730361064043,-1831.78140539,0.000483,120]
[341086996,1730361064053,-1831.78140539,0.000483,120]
[341086997,1730361064062,-1831.78140539,0.000483,120]
[341086998,1730361064072,-1831.78140539,0.000483,120]
[341086999,1730361064082,-1831.78140539,0.000483,120]
[341087000,1730361064091,-1831.78140539,0.000483,120]
[341087001,1730361064103,-1831.78,0.000483,120]
[341087002,1730361064113,-211.12129133,0.000483,24]
[341087003,1730361064122,-270.61058662,0.00048329,10]
[341087004,1730361064132,-1128.99321937,0.00048329,10]
[341087005,1730361064142,-822.1,0.00048348,2]
[341087006,1730361064152,-202.70219833,0.00048373,4]
[341087007,1730361064162,-151.0,0.000484,2]
[341087008,1730361064172,-4766.33224114,0.000484,2]
[341087009,1730361064182,-1833422.12487494,0.000484,3]
[341087010,1730361064192,-231.58928954,0.000484,28]
[341087011,1730361064202,-6000.0,0.000485,120]
[341087012,1730361064211,-28320.64,0.000485,7]
[341087013,1730361064220,-28320.64,0.000485,7]
[341087014,1730361064229,-13408.89,0.000485,7]
[341087015,1730361064239,-152.0,0.00048692,4]
[341087016,1730361064248,-11538.0,0.000487,3]
[341087017,1730361064259,-6000.0,0.000488,120]
[341087018,1730361064268,-1647.5,0.00048849,120]
[341087019,1730361064279,-224.82404699,0.000489,120]
[341087020,1730361064289,-253.72079774,0.000489,120]
[341087021,1730361064298,-6000.0,0.0004899,120]
[341087022,1730361064308,-21583.46569132,0.00049,2]
[341087023,1730361064318,-18292.30340411,0.00049,120]
[341087024,1730361064327,-544.97237946,0.00049,120]
[341087025,1730361064338,-501.35531629,0.00049079,10]
[341087026,1730361064347,-1000.0,0.00049079,10]
[341087027,1730361064357,-163.75079097,0.00049119,120]
[341087028,1730361064366,-256.96083871,0.0004914,30]
[341087029,1730361064376,-150.0,0.0004914,30]
[341087030,1730361064386,-1035.76934477,0.00049154,5]
[341087031,1730361064396,-78591.95,0.000492,7]
[341087032,1730361064406,-1395.6,0.000492,7]
[341087033,1730361064505,-430.18,0.000493,30]
[341087034,1730361064528,-650.26,0.000493,60]
[341087035,1730361064538,-1500.0,0.000493,2]
[341087036,1730361064548,-150.0,0.00049315,2]
[341087037,1730361064558,-495.16970827,0.000495,120]
[341087038,1730361064566,-11538.0,0.000495,5]
[341087039,1730361064577,-1647.5,0.00049533,120]
[341087040,1730361064588,-12318.68620697,0.00049548,15]
[341087041,1730361064598,-506.77725034,0.000496,120]
[341087042,1730361064608,-300.41558139,0.000498,30]
[341087043,1730361064618,-332.067775,0.000499,30]
[341087044,1730361064627,-118994.27,0.00049918,7]
[341087045,1730361064636,-13297.04151174,0.0005,32]
[341087046,1730361064646,-155826.45351009,0.0005,120]
[341087047,1730361064656,-500.0,0.0005,120]
[341087048,1730361064665,-150.0,0.0005,120]
[341087049,1730361064675,-512.0532462,0.0005,120]
[341087050,1730361064686,-1871.36954689,0.0005,120]
[341087051,1730361064696,-2599.97492459,0.0005,5]
[341087052,1730361064706,-2705.35623486,0.0005,60]
[341087053,1730361064716,-2000.0,0.0005,120]
[341087054,1730361064725,-1127.38284412,0.0005,2]
[341087055,1730361064735,-300.00071534,0.0005,5]
[341087056,1730361064745,-3943.21135615,0.0005,2]
[341087057,1730361064756,-1313.17425848,0.0005,7]
[341087058,1730361064766,-352.45025707,0.0005,30]
[341087059,1730361064776,-2686.0,0.0005,19]
[341087060,1730361064786,-890.3125,0.00050084,30]
[341087061,1730361064796,-674.33,0.00050093,2]
[341087062,1730361064805,-1647.5,0.00050218,120]
[341087063,1730361064815,-1108.85093433,0.00050484,120]
[341087064,1730361064824,-68787.05530371,0.00050484,120]
[341087065,1730361064834,-150.103109,0.00050498,120]
[341087066,1730361064844,-18292.30340411,0.000505,120]
[341087067,1730361064854,-163.75079097,0.0005051,120]
[341087068,1730361064864,-519.3262867,0.00050684,120]
[341087069,1730361064874,-523.97540559,0.00050684,120]
[341087070,1730361064884,-588.62018039,0.00050684,120]
[341087071,1730361064894,-537.10444585,0.00050684,120]
[341087072,1730361064904,-327.95306911,0.00050684,120]
[341087073,1730361064913,-500.0,0.00050684,2]
[341087074,1730361064923,-631.74997064,0.00050684,2]
[341087075,1730361064934,-503.06919535,0.00050684,120]
[341087076,1730361064944,-500.0,0.00050684,5]
[341087077,1730361064954,-500.0,0.00050684,5]
[341087078,1730361064964,-500.0,0.00050684,5]
[341087079,1730361064974,-500.0,0.00050684,5]
[341087080,1730361064983,-500.0,0.00050684,5]
[341087081,1730361064995,-500.0,0.00050684,5]
[341087082,1730361065006,-500.0,0.00050684,2]
[341087083,1730361065015,-153.95634684,0.00050684,2]
[341087084,1730361065025,-501.4037619,0.00050684,120]
[341087085,1730361065035,-500.0,0.00050684,2]
[341087086,1730361065045,-500.0,0.00050684,2]
[341087087,1730361065055,-500.0,0.00050684,2]
[341087088,1730361065065,-500.0,0.00050684,2]
[341087089,1730361065075,-500.0,0.00050684,2]
[341087090,1730361065084,-500.0,0.00050684,2]
[341087091,1730361065096,-610.32398377,0.00050684,2]
[341087092,1730361065107,-501.8142192,0.00050684,120]
[341087093,1730361065116,-500.0,0.00050684,120]
[341087094,1730361065126,-500.0,0.00050684,120]
[341087095,1730361065135,-523.01073829,0.00050684,120]
[341087096,1730361065146,-500.0,0.00050684,120]
[341087097,1730361065155,-500.0,0.00050684,120]
[341087098,1730361065165,-506.93152635,0.00050684,120]
[341087099,1730361065174,-500.93235736,0.00050684,120]
[341087100,1730361065184,-500.0,0.00050684,120]
[341087101,1730361065195,-538.95666306,0.00050684,120]
[341087102,1730361065204,-500.0,0.00050684,120]
[341087103,1730361065213,-500.33744789,0.00050684,120]
[341087104,1730361065223,-511.72659143,0.00050684,120]
[341087105,1730361065232,-152.85786819,0.00050684,120]
[341087106,1730361065242,-500.0,0.00050684,120]
[341087107,1730361065252,-501.92433153,0.00050684,120]
[341087108,1730361065263,-500.0,0.00050684,120]
[341087109,1730361065272,-500.0,0.00050684,120]
[341087110,1730361065282,-500.0,0.00050684,120]
[341087111,1730361065292,-500.0,0.00050684,120]
[341087112,1730361065301,-500.0,0.00050684,120]
[341087113,1730361065311,-500.0,0.00050684,120]
[341087114,1730361065321,-500.0,0.00050684,120]
[341087115,1730361065331,-500.0,0.00050684,120]
[341087116,1730361065341,-500.0,0.00050684,120]
[341087117,1730361065350,-500.0,0.00050684,120]
[341087118,1730361065359,-500.0,0.00050684,120]
[341087119,1730361065368,-495.61759342,0.00050684,120]
[341087120,1730361065378,-500.0,0.00050684,120]
[341087121,1730361065387,-500.0,0.00050684,120]
[341087122,1730361065397,-500.0,0.00050684,120]
[341087123,1730361065406,-157.09,0.00050684,120]
[341087124,1730361065417,-552.07,0.00050684,120]
[341087125,1730361065427,-500.0,0.00050684,120]
[341087126,1730361065437,-500.0,0.00050684,120]
[341087127,1730361065446,-514.19147773,0.00050684,120]
[341087128,1730361065455,-511.44181662,0.00050684,120]
[341087129,1730361065465,-500.0,0.00050684,120]
[341087130,1730361065475,-504.71521585,0.00050684,120]
[341087131,1730361065484,-568.33585575,0.00050684,120]
[341087132,1730361065493,-511.29981789,0.00050684,120]
[341087133,1730361065503,-503.54438958,0.00050684,120]
[341087134,1730361065513,-500.0,0.00050684,120]
[341087135,1730361065523,-511.45567852,0.00050684,120]
[341087136,1730361065533,-508.59603575,0.00050684,120]
[341087137,1730361065542,-503.02075762,0.00050684,120]
[341087138,1730361065552,-500.0,0.00050684,120]
[341087139,1730361065561,-500.0,0.00050684,120]
[341087140,1730361065571,-512.33997187,0.00050684,120]
[341087141,1730361065580,-507.36707469,0.00050684,120]
[341087142,1730361065590,-509.28541683,0.00050684,120]
[341087143,1730361065599,-500.0,0.00050684,120]
[341087144,1730361065608,-636.50967691,0.00050684,120]
[341087145,1730361065617,-531.07616038,0.00050684,120]
[341087146,1730361065627,-500.0,0.00050684,120]
[341087147,1730361065636,-500.0,0.00050684,120]
[341087148,1730361065645,-242.31430159,0.00050684,120]
[341087149,1730361065655,-500.0,0.00050684,120]
[341087150,1730361065667,-500.0,0.00050684,120]
[341087151,1730361065677,-503.09492261,0.00050684,120]
[341087152,1730361065686,-500.0,0.00050684,120]
[341087153,1730361065696,-503.01170321,0.00050684,120]
[341087154,1730361065705,-500.0,0.00050684,120]
[341087155,1730361065715,-500.0,0.00050684,120]
[341087156,1730361065724,-637.39962464,0.00050684,120]
[341087157,1730361065733,-500.0,0.00050684,120]
[341087158,1730361065743,-545.91195667,0.00050684,120]
[341087159,1730361065752,-500.0,0.00050684,120]
[341087160,1730361065763,-500.0,0.00050684,120]
[341087161,1730361065771,-500.0,0.00050684,120]
[341087162,1730361065780,-500.0,0.00050684,120]
[341087163,1730361065789,-500.0,0.00050684,120]
[341087164,1730361065799,-500.0,0.00050684,120]
[341087165,1730361065808,-500.0,0.00050684,120]
[341087166,1730361065818,-500.0,0.00050684,120]
[341087167,1730361065828,-500.0,0.00050684,120]